bitfinex-derivatives/quotes_ETHF0:USTF0_20250807
["timestamp","ask_amount","ask_price","bid_price","bid_amount"]
[1754554520768,1.7269,3718.0,3717.9,1.3877]
[1754554521169,1.4453,3718.0,3717.9,1.3877]
[1754554521370,0.786,3718.0,3717.9,1.3877]
[1754554521569,1.4453,3718.0,3717.9,1.3877]
[1754554522075,0.786,3718.0,3717.9,1.3877]
[1754554522674,0.9894,3718.0,3717.9,1.3877]
[1754554523375,0.786,3718.0,3717.9,1.3877]
[1754554523577,0.2814,3718.0,3717.9,1.3877]
[1754554523772,40.8,3718.2,3718.1,1.3877]
[1754554524077,0.4559,3718.5,3718.4,1.21204]
[1754554524078,19.0359,3718.5,3718.4,1.21204]
[1754554524277,1.2419,3718.5,3718.4,1.92544]
[1754554524478,42.2453,3718.5,3718.4,1.92544]
[1754554524871,41.5373,3718.5,3717.8,1.34455]
[1754554525078,0.7373,3718.4,3717.9,0.5185]
[1754554525278,2.26468,3718.2,3718.1,0.4705]
[1754554525875,2.26468,3718.2,3718.1,0.8951]
[1754554526177,2.26468,3718.2,3718.1,1.3877]
[1754554526374,2.26468,3718.2,3718.1,0.4705]
[1754554527376,0.708,3717.6,3717.5,1.40707]
[1754554527574,1.4453,3717.6,3717.5,1.92557]
[1754554528068,0.9894,3717.6,3717.5,1.92557]
[1754554528273,0.786,3717.6,3717.5,1.92557]
[1754554529272,1.24386,3717.6,3717.5,0.1983]
[1754554529480,2.23216,3717.6,3717.5,0.1983]
[1754554529980,1.24389,3717.4,3717.3,0.4353]
[1754554530177,2.23219,3717.4,3717.3,0.4891]
[1754554530483,0.94602,3717.2,3717.1,0.9119]
[1754554530688,1.24392,3717.2,3717.1,0.9119]
[1754554530889,2.23222,3717.2,3717.1,0.9119]
[1754554531383,2.23222,3717.2,3717.1,0.94891701]
[1754554531984,2.23222,3717.2,3717.1,0.03701701]
[1754554532882,43.03222,3717.2,3717.1,0.03701701]
[1754554534084,2.23233,3716.4,3716.3,0.4891]
[1754554534484,2.23233,3716.4,3716.3,0.1983]
[1754554534784,2.23236,3716.2,3716.1,0.7631]
[1754554534985,2.23236,3716.2,3716.1,1.2288]
[1754554534986,1.6943,3716.2,3716.1,1.2288]
[1754554535185,1.6943,3716.2,3716.1,1.4235]
[1754554535383,1.6943,3716.2,3716.1,1.2288]
[1754554535587,1.4094,3716.2,3716.1,1.4235]
[1754554535989,0.783,3716.2,3716.1,1.4235]
[1754554536288,1.4094,3716.2,3716.1,1.4235]
[1754554537888,1.6943,3716.2,3716.1,1.4235]
[1754554539382,1.6943,3716.2,3716.0,0.53808]
[1754554539383,1.4141,3716.2,3716.0,0.53808]
[1754554539584,1.1292,3716.2,3716.1,1.2288]
[1754554539884,1.1292,3716.2,3716.1,1.4235]
[1754554540083,1.6943,3716.2,3716.1,1.46051701]
[1754554540282,1.4094,3716.2,3716.1,1.16971701]
[1754554540581,2.23231,3716.6,3716.5,1.4235]
[1754554540886,2.23231,3716.6,3716.5,0.7631]
[1754554541088,2.23231,3716.6,3716.5,0.52611701]
[1754554541290,2.23231,3716.6,3716.5,0.03701701]
[1754554545590,2.23231,3716.6,3716.5,0.23531701]
[1754554545791,1.4094,3716.6,3716.5,1.46051701]
[1754554546692,0.9243,3716.6,3716.5,1.46051701]
[1754554546985,1.52418,3716.8,3716.7,1.4235]
[1754554547190,1.94738,3716.8,3716.7,1.46051701]
[1754554547686,2.23228,3716.8,3716.7,1.46051701]
[1754554547885,2.23228,3716.8,3716.7,1.26581701]
[1754554548090,2.23228,3716.8,3716.7,0.03701701]
[1754554549790,2.23228,3716.8,3716.7,0.52611701]
[1754554550191,1.94738,3716.8,3716.7,1.46051701]
[1754554550390,2.23228,3716.8,3716.7,1.46051701]
[1754554550988,1.6943,3716.8,3716.7,1.46051701]
[1754554551192,42.14483,3717.2,3717.1,1.4235]
[1754554551193,41.5034,3717.2,3717.1,1.4235]
[1754554551394,60.61632,3717.2,3717.1,1.4235]
[1754554551593,60.90122,3717.2,3717.1,1.4235]
[1754554552098,0.2979,3717.3,3717.2,1.20192]
[1754554552398,1.6943,3717.7,3717.6,0.3841]
[1754554552698,20.2693,3717.7,3717.6,0.1983]
[1754554552896,20.80716,3717.7,3717.6,0.1983]
[1754554553095,0.706,3717.3,3717.2,0.7362]
[1754554553400,1.6943,3717.3,3717.2,1.33801701]
[1754554553599,1.6943,3717.3,3717.2,1.99841701]
[1754554553994,2.23221,3717.3,3717.2,1.46051701]
[1754554554998,2.23221,3717.3,3717.2,1.49753402]
[1754554555599,2.23221,3717.3,3717.2,1.02883402]
[1754554555996,2.23221,3717.3,3717.2,1.30283402]
[1754554556702,1.94731,3717.3,3717.2,1.49753402]
[1754554557094,1.6943,3717.3,3717.2,1.49753402]
[1754554557806,1.4094,3717.3,3717.2,1.49753402]
[1754554558004,59.375,3717.7,3717.6,1.4235]
[1754554558005,41.61805,3717.7,3717.6,1.4235]
[1754554558209,61.42564654,3717.7,3717.6,1.4235]
[1754554558500,60.61225,3717.7,3717.6,1.4235]
[1754554558999,40.8,3717.7,3717.6,1.49753402]
[1754554560898,41.5218,3717.7,3717.6,1.49753402]
[1754554564004,41.8145,3717.7,3717.6,0.07403402]
[1754554564205,41.8145,3717.7,3717.6,0.81873402]
[1754554564404,41.0983,3717.7,3717.6,1.51523402]
[1754554564606,41.5218,3717.7,3717.6,1.51523402]
[1754554564899,41.8145,3717.7,3717.6,0.26253402]
[1754554565101,41.8145,3717.7,3717.6,0.07403402]
[1754554565295,42.6276824,3717.7,3717.6,0.07403402]
[1754554566001,2.5238824,3717.7,3717.6,0.07403402]
[1754554566198,0.83051,3718.0,3717.6,1.32113402]
[1754554566402,21.32829102,3718.0,3717.9,1.2471]
[1754554566602,21.32829102,3718.0,3717.9,1.4412]
[1754554567001,42.60758102,3718.0,3717.9,1.4412]
[1754554567205,42.218,3718.0,3717.9,1.51523402]
[1754554567609,60.783,3718.0,3717.9,1.51523402]
[1754554568303,42.218,3718.0,3717.9,1.51523402]
[1754554568706,42.5107,3718.0,3717.9,1.51523402]
[1754554570010,42.5107,3718.0,3717.9,0.07403402]
[1754554570011,61.0747,3718.0,3717.9,0.07403402]
[1754554573417,61.0747,3718.0,3717.0,0.1941]
[1754554573418,0.6962,3717.1,3717.0,1.97915]
[1754554573614,1.418,3717.1,3717.0,1.97915]
[1754554574016,1.7107,3717.1,3717.0,1.97915]
[1754554574812,0.8003,3717.1,3717.0,1.97915]
[1754554575118,19.98,3717.4,3717.3,1.9791]
[1754554577411,20.2727,3717.4,3717.3,1.9791]
[1754554578316,20.2727,3717.4,3717.3,1.785]
[1754554578711,20.2727,3717.4,3717.3,1.4784]
[1754554578919,20.2727,3717.4,3717.3,1.2826]
[1754554580820,20.2727,3717.4,3717.3,1.0101]
[1754554581208,20.2727,3717.4,3717.3,1.2826]
[1754554582316,21.08787697,3717.4,3717.3,1.2826]
[1754554582518,21.08787697,3717.4,3717.3,1.9791]
[1754554583215,1.61547697,3717.4,3717.3,1.9791]
[1754554583421,1.418,3717.7,3717.6,1.97905]
[1754554583616,20.79118216,3717.7,3717.6,1.97905]
[1754554584320,21.08388216,3717.7,3717.6,1.97905]
[1754554585919,21.08388216,3717.7,3717.6,1.01005]
[1754554587019,21.08388216,3717.7,3717.6,1.28255]
[1754554588420,21.08388216,3717.7,3717.5,0.53786]
[1754554588421,0.53786,3717.6,3717.5,0.53786]
[1754554588722,2.52588216,3717.6,3717.5,0.53786]
[1754554590623,2.52588216,3717.6,3717.5,0.84396]
[1754554591122,2.52588216,3717.6,3717.5,0.53786]
[1754554592318,2.20887,3717.5,3717.4,0.53788]
[1754554592515,21.57805216,3717.5,3717.4,0.53788]
[1754554593424,21.04018216,3717.5,3717.4,0.53788]
[1754554593625,21.04018216,3717.5,3717.4,1.32328]
[1754554594826,2.48618216,3717.5,3717.4,1.82018]
[1754554595019,19.36818216,3717.5,3717.4,2.01488]
[1754554595218,18.553,3717.5,3717.4,2.01488]
[1754554595516,0.2838,3717.9,3717.7,0.53785]
[1754554595828,1.3885,3718.2,3718.1,2.01479]
[1754554596018,20.75787886,3718.2,3718.1,2.01479]
[1754554596423,61.55787886,3718.2,3718.1,2.01479]
[1754554596922,60.92777886,3718.2,3718.1,2.01479]
[1754554597426,61.36267886,3718.2,3718.1,2.01479]
[1754554597627,41.61737886,3718.2,3718.1,2.01479]
[1754554597831,60.16837886,3718.2,3718.1,2.01479]
[1754554598220,41.61737886,3718.2,3718.1,2.01479]
[1754554598721,0.81737886,3718.2,3718.1,2.01479]
[1754554598918,0.9095,3718.7,3718.6,1.24042]
[1754554599123,20.75547311,3718.7,3718.6,2.01472]
[1754554599624,20.75447311,3718.7,3718.6,2.01472]
[1754554600928,21.03697311,3718.7,3718.6,2.01472]
[1754554601626,21.03697311,3718.7,3718.6,1.04962]
[1754554601927,2.48797311,3718.7,3718.6,1.04962]
[1754554602327,21.03597311,3718.7,3718.6,1.04962]
[1754554603320,21.03597311,3718.7,3718.6,0.53772]
[1754554603833,1.671,3718.4,3718.3,1.04966]
[1754554604125,20.217,3718.4,3718.3,1.04966]
[1754554605923,20.217,3718.4,3718.3,1.32316]
[1754554607232,20.217,3718.4,3718.3,0.53776]
[1754554607733,1.1933,3717.9,3717.8,0.74363]
[1754554607932,1.671,3717.9,3717.8,0.53783]
[1754554608332,43.28646784,3717.9,3717.8,0.53783]
[1754554609534,43.28646784,3717.9,3717.8,2.01483]
[1754554609736,41.0816,3717.9,3717.8,2.01483]
[1754554609940,59.343,3717.9,3717.8,2.01483]
[1754554610334,59.6268,3717.9,3717.8,2.01483]
[1754554610939,41.8012,3717.9,3717.8,1.82013]
[1754554611938,41.8012,3717.9,3717.8,1.04973]
[1754554612235,41.8012,3717.9,3717.8,0.53783]
[1754554613231,1.20763,3717.8,3717.7,0.53784]
[1754554613432,20.75083,3717.8,3717.7,0.53784]
[1754554613736,20.70233855,3717.8,3716.8,1.34495]
[1754554614040,20.70233855,3717.8,3716.9,1.69126]
[1754554614041,1.671,3717.0,3716.9,1.69126]
[1754554614335,1.671,3717.0,3716.9,2.19206]
[1754554614537,1.3885,3717.0,3716.9,2.19206]
[1754554615731,1.3885,3717.0,3716.9,1.99736]
[1754554615931,1.671,3717.0,3716.9,1.99736]
[1754554618835,1.3885,3717.0,3716.9,2.19206]
[1754554619542,0.4914,3717.3,3717.2,0.53792]
[1754554619742,1.7129,3717.3,3717.2,2.17622]
[1754554621342,1.7129,3717.3,3717.2,1.98122]
[1754554621544,1.7129,3717.3,3717.2,1.77882]
[1754554622046,1.7129,3717.3,3717.2,1.04822]
[1754554622545,1.7129,3717.3,3717.1,0.53793]
[1754554622844,1.7129,3717.2,3717.1,1.77883]
[1754554623144,0.6897,3716.8,3716.7,1.41799]
[1754554623341,1.7129,3716.8,3716.7,1.41799]
[1754554623843,1.7129,3716.8,3716.7,2.17629]
[1754554624044,1.41,3716.8,3716.7,2.17629]
[1754554624448,42.21,3716.8,3716.7,2.17629]
[1754554624943,1.34461,3717.8,3716.7,2.17629]
[1754554624944,0.83492762,3718.3,3718.1,0.685]
[1754554625144,0.3029,3721.2,3719.9,0.53753]
[1754554625345,41.1029,3721.4,3719.2,21.32970962]
[1754554625548,0.69695427,3720.3,3720.2,0.53749]
[1754554625748,1.0232,3720.9,3720.7,0.53741]
[1754554625949,20.0482,3720.8,3720.7,0.53741]
[1754554626251,1.0232,3720.8,3720.7,0.53741]
[1754554626750,1.0232,3720.8,3719.0,19.019]
[1754554626751,1.0232,3720.7,3720.4,0.53744]
[1754554627049,1.0232,3720.6,3720.4,0.53744]
[1754554627254,0.7203,3720.7,3720.4,0.53744]
[1754554627450,0.3029,3720.5,3720.4,0.53744]
[1754554627748,1.0232,3720.5,3720.4,0.53744]
[1754554628150,41.8232,3720.5,3720.4,0.53744]
[1754554628650,60.8462,3720.5,3720.4,0.53744]
[1754554629841,1.0232,3720.2,3718.7,19.026]
[1754554630147,1.0232,3720.2,3720.1,0.53749]
[1754554630342,20.0342,3720.2,3720.1,0.53749]
[1754554630943,20.7239,3720.2,3720.1,0.53749]
[1754554631549,0.5905,3720.1,3719.1,0.2281]
[1754554631849,1.7129,3720.0,3719.9,0.53752]
[1754554632049,2.40985427,3720.0,3719.9,0.53752]
[1754554632653,1.7129,3719.2,3719.1,1.17104]
[1754554633149,2.40985427,3719.2,3719.1,1.17104]
[1754554633352,42.77715427,3719.2,3719.1,1.17104]
[1754554633649,42.48955427,3719.2,3719.1,1.47844]
[1754554634053,41.7926,3719.2,3719.1,1.47844]
[1754554634241,42.48955427,3719.2,3719.1,1.47844]
[1754554634552,41.49695427,3719.2,3719.1,1.47844]
[1754554636855,41.49695427,3719.2,3719.1,1.17104]
[1754554637155,42.08745427,3719.2,3719.1,1.17104]
[1754554637557,42.08745427,3719.2,3719.1,1.47844]
[1754554637854,42.08745427,3719.2,3719.1,1.25034]
[1754554638053,42.52015427,3719.2,3719.1,1.19614]
[1754554638253,42.52015427,3719.2,3719.1,0.53764]
[1754554640054,41.49695427,3719.2,3719.1,1.25034]
[1754554640255,41.49695427,3719.2,3719.1,1.50354]
[1754554640752,42.08745427,3719.2,3719.1,1.50354]
[1754554640953,42.08745427,3719.2,3719.1,1.19614]
[1754554641155,61.47815427,3719.2,3719.1,0.94294]
[1754554642058,61.47815427,3719.2,3719.1,0.53764]
[1754554645353,0.7356,3719.0,3718.9,0.53765]
[1754554645560,20.35,3719.0,3718.9,0.53765]
[1754554645858,21.34985427,3719.0,3718.9,0.53765]
[1754554647052,1.02356,3718.9,3718.3,0.2532]
[1754554647258,1.7129,3718.5,3718.4,1.19624]
[1754554647455,1.7129,3718.5,3718.4,0.94304]
[1754554647663,2.40985427,3718.5,3718.4,1.19624]
[1754554648753,2.40985427,3718.5,3718.4,1.50364]
[1754554650262,2.40985427,3718.5,3718.4,1.19254]
[1754554650463,2.40985427,3718.5,3718.4,1.49944]
[1754554651756,2.40985427,3718.5,3718.4,1.19254]
[1754554653762,1.01285427,3718.5,3718.4,1.49944]
[1754554654163,1.51485427,3718.5,3718.4,1.49944]
[1754554654366,2.47985427,3718.5,3718.4,1.49944]
[1754554654762,2.47985427,3718.5,3718.4,1.19254]
[1754554655165,1.7829,3718.5,3718.4,0.49558573]
[1754554655464,1.7829,3718.5,3718.4,1.03332573]
[1754554656271,1.7829,3718.5,3718.4,0.53774]
[1754554656463,18.92,3718.6,3718.2,1.90600135]
[1754554656464,0.53775,3718.3,3718.2,0.53776]
[1754554656663,1.7829,3718.3,3718.2,0.53776]
[1754554657458,1.7829,3718.3,3718.2,1.19256]
[1754554658367,1.7829,3718.3,3718.2,0.94336]
[1754554658868,1.7829,3718.3,3718.2,1.19256]
[1754554662368,0.3159,3718.3,3718.2,1.36386]
[1754554662770,0.8179,3718.3,3718.2,1.36386]
[1754554662966,1.1212,3718.3,3718.2,1.36386]
[1754554663276,1.7829,3718.3,3718.2,1.36386]
[1754554663866,0.3159,3718.3,3718.2,1.36386]
[1754554664267,1.1212,3718.3,3718.2,1.36386]
[1754554666270,18.85,3718.4,3718.2,1.36316]
[1754554666568,1.7829,3718.3,3718.2,1.36316]
[1754554667468,1.7829,3718.3,3718.2,1.19256]
[1754554671676,1.7829,3718.3,3718.2,0.94336]
[1754554672274,1.7829,3718.3,3718.2,1.19186]
[1754554680383,1.0418,3718.1,3718.0,0.53778]
[1754554680681,20.5003,3718.1,3718.0,0.53778]
[1754554681483,61.3003,3718.1,3718.0,0.53778]
[1754554682386,61.3003,3718.1,3718.0,1.19068]
[1754554691988,61.3003,3718.1,3718.0,0.53778]
[1754554692683,61.3003,3718.1,3717.6,1.34461]
[1754554692684,0.7085,3718.0,3717.9,0.5378]
[1754554692884,0.53781,3717.9,3717.8,0.53781]
[1754554693084,20.98311,3717.9,3717.8,0.53781]
[1754554693289,20.4453,3717.9,3717.8,0.53781]
[1754554694288,0.53782,3717.8,3717.7,0.53783]
[1754554694590,2.28812,3717.8,3717.7,0.53783]
[1754554695494,1.7503,3717.8,3717.7,0.53783]
[1754554697096,1.7503,3717.8,3717.7,0.74573]
[1754554697396,1.7503,3717.8,3717.7,0.53783]
[1754554701393,1.24634,3717.7,3717.6,0.53784]
[1754554701588,2.28814,3717.7,3717.6,0.53784]
[1754554701800,1.5446,3717.3,3717.2,0.53789]
[1754554702093,1.7503,3717.3,3717.2,0.53789]
[1754554702297,1.7503,3717.3,3717.2,1.19079]
[1754554703195,0.3052,3717.3,3717.2,1.35579]
[1754554704595,0.6034,3717.3,3717.2,1.35579]
[1754554705500,1.0418,3717.3,3717.2,1.35579]
[1754554706597,1.34451,3718.0,3717.9,0.8179]
[1754554706598,0.9466,3718.0,3717.9,0.8179]
[1754554706802,18.651,3718.2,3718.0,0.94779]
[1754554706997,41.1052,3718.1,3718.0,1.35569]
[1754554707190,41.4034,3718.1,3718.0,1.35569]
[1754554707394,41.8418,3718.1,3718.0,1.35569]
[1754554708606,1.0418,3718.1,3718.0,1.35569]
[1754554708902,1.55,3718.1,3718.0,1.35569]
[1754554709104,1.7503,3718.1,3718.0,1.19069]
[1754554709998,1.7503,3718.1,3718.0,1.34489]
[1754554710799,1.7503,3718.1,3718.0,1.19069]
[1754554711605,0.8134,3718.1,3718.0,1.17599]
[1754554711805,1.7454,3718.1,3718.0,1.17599]
[1754554713400,1.2475,3718.1,3718.0,1.17599]
[1754554713907,1.7454,3718.1,3718.0,1.17599]
[1754554719611,20.3544,3718.1,3718.0,1.17599]
[1754554721619,1.7454,3718.1,3718.0,1.17599]
[1754554723910,1.24489,3718.0,3717.9,0.5378]
[1754554724118,19.8509,3718.0,3717.8,0.53781]
[1754554724309,1.7238,3717.9,3717.8,0.53781]
[1754554725212,0.53782,3717.8,3717.7,0.53783]
[1754554725413,2.26162,3717.8,3717.7,0.53783]
[1754554725809,2.26165,3717.7,3717.6,0.53785]
[1754554726014,2.26167,3717.5,3717.4,0.53787]
[1754554726216,1.7238,3717.5,3717.4,0.53787]
[1754554726516,1.7238,3717.5,3717.4,0.94007]
[1754554727412,1.7238,3717.5,3716.7,1.34493]
[1754554727413,0.53791,3717.3,3716.8,1.57702]
[1754554727615,1.7238,3716.9,3716.8,0.6343]
[1754554728221,1.7238,3716.9,3716.8,0.94016]
[1754554728413,1.7238,3716.9,3716.8,1.17226]
[1754554732014,1.7238,3716.9,3716.8,0.6343]
[1754554732222,2.26176,3716.8,3716.7,0.53797]
[1754554732525,2.26176,3716.8,3716.4,0.2321]
[1754554732526,1.24506,3716.8,3716.6,0.53799]
[1754554732818,1.7238,3716.7,3716.6,0.53799]
[1754554733014,1.2897,3716.3,3716.2,0.6343]
[1754554733221,1.7238,3716.3,3716.2,1.17235]
[1754554734423,1.517,3716.9,3716.8,0.53796]
[1754554734720,0.2915,3716.9,3716.8,0.94016]
[1754554734921,0.2915,3716.9,3716.8,1.09436]
[1754554735122,0.2915,3716.9,3716.8,1.32646]
[1754554736221,0.4341,3717.3,3717.2,1.32641]
[1754554736222,0.2915,3717.3,3717.2,1.32641]
[1754554736424,1.7238,3717.6,3717.5,1.17216]
[1754554736625,1.7238,3717.6,3717.5,1.32636]
[1754554737425,1.7238,3717.6,3717.5,1.17216]
[1754554739019,1.7238,3717.6,3717.5,1.17336]
[1754554739221,40.8,3718.0,3717.9,0.5378]
[1754554739524,41.8453,3718.0,3717.9,0.5378]
[1754554741930,0.3984,3717.3,3717.2,1.43391]
[1754554742130,1.74,3717.3,3717.2,1.87201]
[1754554743315,1.2854,3717.3,3717.2,2.02301]
[1754554743519,1.2854,3717.3,3717.2,1.87201]
[1754554743723,1.74,3717.3,3717.2,1.87201]
[1754554744228,1.74,3717.3,3717.2,0.53791]
[1754554745423,1.74,3717.3,3717.2,1.87201]
[1754554746027,1.74,3717.3,3717.2,1.64311]
[1754554746231,1.74,3717.3,3717.2,0.53791]
[1754554748928,0.6947,3716.8,3716.7,1.26128]
[1754554749133,1.74,3716.8,3716.7,1.44978]
[1754554749428,1.74,3716.8,3716.7,1.87208]
[1754554750421,0.2982,3717.4,3716.9,1.34489]
[1754554750622,0.9872,3717.5,3717.4,1.20498]
[1754554750828,0.9872,3717.5,3717.4,2.02298]
[1754554751128,1.2854,3717.5,3717.4,2.02298]
[1754554751330,0.2982,3717.5,3717.4,2.02298]
[1754554753034,0.2982,3717.7,3717.6,2.02295]
[1754554753229,0.7898,3717.7,3717.6,2.02295]
[1754554753432,1.74,3717.7,3717.6,0.53785]
[1754554753734,1.74,3717.2,3717.1,0.53791]
[1754554754228,42.54,3717.2,3717.1,0.53791]
[1754554754627,42.0854,3717.2,3716.1,1.34515]
[1754554754828,1.74,3716.4,3716.3,1.43404]
[1754554755033,1.74,3716.4,3716.3,0.82324]
[1754554755332,1.74,3716.4,3716.3,0.2852]
[1754554757628,1.74,3716.4,3716.3,0.7233]
[1754554758527,1.74,3716.4,3716.3,1.1052]
[1754554758737,1.74,3716.4,3716.3,1.3341]
[1754554758930,1.74,3716.4,3716.0,1.34522]
[1754554758931,0.6947,3717.1,3717.0,1.20504]
[1754554759234,0.6947,3717.1,3717.0,1.87204]
[1754554759431,1.74,3717.1,3717.0,1.87204]
[1754554760432,42.54,3717.1,3717.0,1.87204]
[1754554760635,42.2475,3717.1,3717.0,1.87204]
[1754554760828,42.54,3717.1,3717.0,1.87204]
[1754554762031,0.2925,3717.4,3717.3,0.5379]
[1754554762334,1.74,3717.4,3717.3,1.872]
[1754554762726,0.53787,3717.5,3717.3,0.5379]
[1754554762930,0.7898,3717.7,3717.6,1.20494]
[1754554763136,0.7898,3717.7,3717.6,1.87194]
[1754554763338,0.9891,3717.7,3717.6,1.87194]
[1754554763535,0.4973,3717.9,3717.8,1.20492]
[1754554763841,2.27776,3718.3,3718.2,1.87186]
[1754554764136,42.54,3718.3,3718.2,1.3341]
[1754554764331,42.76158092,3718.3,3718.2,1.3341]
[1754554765131,42.76158092,3718.3,3718.2,1.1052]
[1754554766139,42.54,3718.3,3718.2,1.3341]
[1754554766342,42.3407,3718.3,3718.2,1.3341]
[1754554766547,0.6947,3718.9,3718.8,0.2852]
[1754554766840,1.74,3718.9,3718.8,0.9118]
[1754554767042,42.54,3718.9,3718.8,1.1052]
[1754554767439,42.54,3718.9,3718.8,1.3341]
[1754554768740,42.54,3718.9,3718.7,0.53768]
[1754554768741,1.74,3718.8,3718.7,0.53768]
[1754554769546,0.6803,3718.6,3718.2,0.4381]
[1754554769841,40.8,3718.9,3718.2,0.4381]
[1754554769842,1.6807,3718.3,3718.2,0.83627]
[1754554770045,1.6807,3718.3,3718.2,1.88517]
[1754554770338,0.4804,3718.6,3718.5,0.53772]
[1754554770539,1.2585,3718.6,3718.5,1.88512]
[1754554771041,1.6807,3718.6,3718.5,1.88512]
[1754554771641,1.2585,3718.6,3718.5,1.88512]
[1754554772043,0.9589,3718.6,3718.5,1.88512]
[1754554772241,0.6675,3718.6,3718.5,2.03552]
[1754554772640,0.2868,3718.6,3718.5,2.03552]
[1754554772832,41.5136,3718.9,3718.5,2.03552]
[1754554773039,41.3782,3718.9,3718.8,1.88508]
[1754554773441,0.4758,3719.2,3719.1,1.88504]
[1754554773640,1.2585,3719.2,3719.1,1.88504]
[1754554774042,42.4807,3719.2,3719.1,1.88504]
[1754554774345,0.53751,3720.0,3719.1,1.88504]
[1754554774346,0.6803,3719.9,3719.8,0.53752]
[1754554774543,20.3397,3719.9,3719.8,0.53752]
[1754554774947,61.1397,3719.9,3719.8,0.53752]
[1754554775938,61.1397,3719.9,3719.8,1.27342]
[1754554776245,42.4807,3719.9,3719.8,1.88492]
[1754554776446,42.0585,3719.9,3719.8,1.88492]
[1754554777039,42.4807,3719.9,3719.8,1.88492]
[1754554777440,1.6807,3719.9,3719.8,1.88492]
[1754554777938,0.9589,3719.9,3719.8,1.88492]
[1754554778135,1.2585,3719.9,3719.8,1.88492]
[1754554778341,1.6807,3719.9,3719.8,1.88492]
[1754554778537,1.6807,3719.9,3719.8,1.65662]
[1754554778743,0.5782,3719.9,3719.8,1.88492]
[1754554778945,1.6807,3719.9,3719.8,1.88492]
[1754554779650,1.6807,3719.9,3719.8,1.3474]
[1754554779848,1.6807,3719.9,3719.8,0.2985]
[1754554780349,1.6807,3719.9,3719.8,0.7359]
[1754554780650,1.6807,3719.9,3719.8,1.1191]
[1754554780850,1.6807,3719.9,3719.8,1.3474]
[1754554781943,1.6807,3719.9,3719.8,1.1191]
[1754554783648,1.6807,3719.9,3719.3,1.34402]
[1754554783854,0.6803,3719.7,3719.2,1.34405]
[1754554784153,18.655,3719.9,3719.3,1.3474]
[1754554784154,1.6807,3719.4,3719.3,1.3474]
[1754554784351,1.6807,3719.4,3719.3,1.88501]
[1754554784850,1.6807,3719.8,3719.7,1.44754]
[1754554785051,1.6807,3719.8,3719.7,0.53754]
[1754554785349,1.6807,3719.8,3719.7,1.27344]
[1754554785944,1.6807,3719.8,3719.7,0.83604]
[1754554786140,1.6807,3719.8,3719.7,1.27344]
[1754554786352,1.0004,3719.7,3718.8,0.3787]
[1754554786549,18.65,3719.8,3719.5,1.27347]
[1754554786550,1.3939,3719.6,3719.5,1.27347]
[1754554786850,1.6807,3719.6,3719.5,1.27347]
[1754554787146,1.6807,3719.6,3719.5,1.88497]
[1754554787352,1.6807,3719.6,3719.5,1.65667]
[1754554787551,1.6807,3719.6,3719.5,0.53757]
[1754554787947,1.6807,3719.6,3719.5,0.83607]
[1754554788148,1.6807,3719.6,3719.5,1.27347]
[1754554788648,1.6807,3719.6,3719.5,1.65667]
[1754554788856,0.2868,3719.6,3719.5,2.03537]
[1754554789165,0.4758,3719.6,3719.5,2.03537]
[1754554789357,0.2868,3719.6,3719.5,2.03537]
[1754554790457,1.6807,3719.9,3719.8,1.65664]
[1754554790657,1.6807,3719.9,3719.8,1.88494]
[1754554792260,1.6807,3719.9,3718.9,2.6883]
[1754554792261,1.6807,3719.7,3719.6,0.2985]
[1754554792455,1.6807,3719.7,3719.6,0.7359]
[1754554792765,1.6807,3719.7,3719.6,1.3474]
[1754554793362,1.6807,3719.7,3719.6,1.88495]
[1754554794366,0.4758,3719.7,3719.6,2.03535]
[1754554794670,0.4758,3719.7,3719.6,1.88495]
[1754554794671,1.6807,3719.7,3719.6,1.88495]
[1754554794859,2.21825,3719.7,3719.6,1.3474]
[1754554795061,1.21785,3719.7,3719.6,0.7359]
[1754554795255,1.21785,3719.7,3719.6,0.9251]
[1754554795460,0.6803,3719.7,3719.6,1.3474]
[1754554795770,1.6807,3719.7,3719.6,1.3474]
[1754554797963,1.6807,3719.7,3719.5,0.53757]
[1754554797964,1.64006,3719.7,3719.5,0.53757]
[1754554798170,1.6807,3719.6,3719.5,0.83607]
[1754554798566,1.6807,3719.6,3719.5,1.27347]
[1754554799567,19.3235,3719.9,3719.8,0.2866]
[1754554799771,19.3235,3719.9,3719.8,0.7281]
[1754554800265,1.2862,3719.9,3719.8,1.45594]
[1754554800471,1.7389,3719.9,3719.8,1.88304]
[1754554800670,1.21507,3719.7,3719.6,0.82416]
[1754554800870,2.27647,3719.7,3719.6,0.82416]
[1754554801172,1.7389,3719.7,3719.6,1.26566]
[1754554801372,1.2151,3719.5,3719.4,0.2866]
[1754554801560,1.7389,3719.5,3719.4,0.82418]
[1754554802367,1.7389,3719.5,3719.4,1.26568]
[1754554802870,0.753,3719.1,3719.0,0.53764]
[1754554803067,0.753,3719.1,3718.7,1.34424]
[1754554803068,1.53958,3718.9,3718.8,0.82427]
[1754554803373,2.27658,3718.9,3718.8,0.82427]
[1754554803569,1.7389,3718.9,3718.8,0.82427]
[1754554804175,1.7389,3718.9,3718.8,1.26577]
[1754554804576,42.0862,3718.9,3718.8,1.88317]
[1754554805673,40.8,3718.9,3718.8,1.88317]
[1754554805978,0.4998,3719.1,3719.0,1.21485]
[1754554806175,1.0019,3719.1,3719.0,1.88315]
[1754554806568,40.8,3719.1,3719.0,2.03205]
[1754554806965,0.3003,3719.5,3719.4,1.88309]